fUSD/lending_fUSD_20250208
["ID","MTS","AMOUNT","RATE_DAILY","PERIOD"]
[352220105,1739005832119,-8460.2035753,0.0001,2]
[352220106,1739005832175,-1498.78949728,0.0001,2]
[352220107,1739005832187,-1182.71091713,0.0001,2]
[352220108,1739005832198,-1180.03544542,0.0001,2]
[352220293,1739005837859,-3598.5850687,0.0001,2]
[352220294,1739005837914,-735.15365519,0.0001,2]
[352220540,1739005840394,-307.26874014,0.0001,2]
[352220542,1739005840544,-578.6613056,0.0001,2]
[352221954,1739005951657,2065.16332174,0.0002,120]
[352221955,1739006111216,-453.4775,8.699e-05,2]
[352221956,1739006128058,-2495.0377,8.836e-05,2]
[352221957,1739006128356,-6489.4016,8.836e-05,2]
[352221958,1739006128382,-1000.0,8.851e-05,2]
[352221959,1739006128409,-2500.0,8.851e-05,2]
[352221960,1739006136441,1000.0,8.634e-05,2]
[352221961,1739006168598,818.0,0.0002,120]
[352221962,1739006174670,441.1091,8.836e-05,2]
[352221963,1739006178092,165.27,8.636e-05,2]
[352221964,1739006189065,-4802.6099,8.973e-05,2]
[352221965,1739006248143,150.0,8.397e-05,2]
[352221966,1739006248184,150.0,8.461e-05,2]
[352221967,1739006248266,150.0,8.404e-05,2]
[352221968,1739006274282,1259.5409,8.836e-05,2]
[352221969,1739006309229,150.0,8.445e-05,2]
[352221970,1739006368285,150.0,7.967e-05,2]
[352221972,1739006402865,865.95,8.99e-05,2]
[352221973,1739006507783,166.9,8.975e-05,2]
[352221976,1739006815681,537.92,8.219e-05,2]
[352221984,1739007032079,-282.20816542,9.013e-05,2]
[352221986,1739007032132,-717.79183458,9.013e-05,2]
[352221987,1739007032141,-261.22,9.196e-05,2]
[352221988,1739007032151,-600.0,9.214e-05,2]
[352221989,1739007032161,-250.0,9.215e-05,2]
[352221990,1739007032170,-180.45539977,9.272e-05,2]
[352221991,1739007032179,-739.6396624,9.272e-05,2]
[352221992,1739007032188,-1059.0,9.272e-05,2]
[352221993,1739007032197,-236.40999092,9.281e-05,2]
[352221994,1739007032206,-500.0,9.569e-05,2]
[352221995,1739007032216,-500.0,9.736e-05,2]
[352221996,1739007032225,-1059.0,9.76e-05,2]
[352221997,1739007032236,-83.25060134,9.978e-05,2]
[352221998,1739007032249,-280.710003,9.978e-05,2]
[352221999,1739007032261,-74.74939566,9.978e-05,2]
[352222000,1739007032270,-150.0,9.978e-05,2]
[352222001,1739007032281,-150.0,9.978e-05,2]
[352222002,1739007032293,-438.71,9.978e-05,2]
[352222003,1739007032303,-150.0,9.978e-05,2]
[352222004,1739007032314,-150.0,9.978e-05,2]
[352222005,1739007032324,-1882.37060434,9.994e-05,2]
[352222006,1739007032335,-294.33656805,9.994e-05,2]
[352222007,1739007032351,-416.79146914,9.994e-05,2]
[352222008,1739007032363,-3152.08494769,9.994e-05,2]
[352222009,1739007032374,-150.0,9.998e-05,2]
[352222010,1739007032383,-1000.0,9.999e-05,2]
[352222011,1739007032393,-500.0,9.999e-05,2]
[352222012,1739007032403,-392.07820081,9.999e-05,2]
[352222013,1739007032414,-500.0,9.999e-05,2]
[352222014,1739007032424,-306.30315357,9.999e-05,2]
[352222015,1739007032433,-500.0,9.999e-05,2]
[352222016,1739007032442,-500.0,9.999e-05,2]
[352222017,1739007032452,-500.0,9.999e-05,2]
[352222018,1739007032460,-500.0,9.999e-05,2]
[352222019,1739007032469,-500.0,9.999e-05,2]
[352222021,1739007032478,-500.0,9.999e-05,2]
[352222023,1739007032487,-229.00459993,0.0001,2]
[352222026,1739007032506,-497.75588828,0.0001,2]
[352222028,1739007032517,-778.3765176,0.0001,2]
[352222030,1739007032528,-540.49795588,0.0001,2]
[352222052,1739007032689,-5745.66501929,0.0001,2]
[352222054,1739007032702,-1305.0,0.0001,2]
[352222055,1739007032713,-5450.527,0.0001,2]
[352222056,1739007032734,-1472.14757156,0.0001,2]
[352222057,1739007032745,-947.31015434,0.0001,2]
[352222058,1739007032756,-11115.65482573,0.0001,2]
[352222062,1739007038031,-1767.9141772,0.0001,2]
[352222063,1739007038042,-9532.16317806,0.0001,2]
[352222064,1739007038053,-579.62028361,0.0001,2]
[352222065,1739007038201,-21734.71271618,0.0001,2]
[352222066,1739007038212,-348.24626545,0.0001,2]
[352222067,1739007038224,-166531.02345905,0.0001,2]
[352222068,1739007038256,-2976.7763258,0.0001,2]
[352222282,1739007040328,-849.61296766,0.0001,2]
[352222284,1739007040339,-785.935,0.0001,2]
[352222900,1739007046287,-518.82810865,0.0001,2]
[352223695,1739007122293,5000.0,8.973e-05,2]
[352223696,1739007643187,511.02,8.219e-05,2]
[352223697,1739008156347,345.37,0.0002,120]
[352223703,1739008232353,-596.45,9.551e-05,2]
[352223704,1739008232362,-500.0,9.562e-05,2]
[352223705,1739008232371,-166.9,9.565e-05,2]
[352223706,1739008232380,-152.23,9.639e-05,2]
[352223707,1739008232390,-689.63471463,9.644e-05,2]
[352223708,1739008232401,-310.36528537,9.644e-05,2]
[352223709,1739008232410,-261.22,9.656e-05,2]
[352223710,1739008232419,-150.0,9.888e-05,2]
[352223711,1739008232429,-31.18265449,9.888e-05,2]
[352223712,1739008232462,-118.81734551,9.888e-05,2]
[352223713,1739008232472,-150.0,9.888e-05,2]
[352223714,1739008232481,-131.18265449,9.888e-05,2]
[352223715,1739008232524,-18.81734551,9.888e-05,2]
[352223716,1739008232533,-174.031,9.999e-05,2]
[352223717,1739008232541,-696.3258324,9.999e-05,2]
[352223718,1739008232579,-240.9921676,9.999e-05,2]
[352223719,1739008232588,-150.0,9.999e-05,2]
[352223720,1739008232597,-300.0,9.999e-05,2]
[352223721,1739008232606,-13201.44671834,0.0001,2]
[352224276,1739008238159,-2079.24975989,0.0001,2]
[352224834,1739008243592,-962.26,0.0001,2]
[352225028,1739008246507,-9636.4537178,0.0001,2]
[352225294,1739008376096,-166.74,9.659e-05,2]
[352225295,1739008376121,-7083.26,0.0001,2]
[352225296,1739008394199,308.678,8.699e-05,2]
[352225300,1739008411573,9478.9457,8.836e-05,2]
[352225301,1739008472674,556.6544,8.699e-05,2]
[352225302,1739008474025,543.39,8.219e-05,2]
[352225303,1739008482428,158.2784,8.699e-05,2]
[352225304,1739008486237,228.9627,8.851e-05,2]
[352225305,1739008857377,180.9317,8.836e-05,2]
[352225306,1739008909554,224.0494,8.836e-05,2]
[352225315,1739009425451,516.22,8.219e-05,2]
[352225344,1739009432382,-1662.3340754,9.505e-05,7]
[352225346,1739009432392,-254.930664,9.505e-05,2]
[352225348,1739009432402,-197.32,9.525e-05,2]
[352225350,1739009432411,-213.75,9.554e-05,2]
[352225352,1739009432420,-193.09,9.586e-05,2]
[352225354,1739009432430,-1000.0,9.613e-05,2]
[352225356,1739009432439,-196.83,9.685e-05,2]
[352225358,1739009432448,-775.08,9.69e-05,2]
[352225359,1739009432457,-775.08,9.69e-05,2]
[352225361,1739009432467,-351.93,9.69e-05,2]
[352225363,1739009432477,-224.66929823,9.957e-05,2]
[352225365,1739009432486,-300.0,9.959e-05,2]
[352225367,1739009432495,-775.08,9.96e-05,2]
[352225369,1739009432504,-775.08,9.96e-05,2]
[352225371,1739009432513,-174.03199015,9.999e-05,2]
[352225373,1739009432523,-749.855,9.999e-05,2]
[352225375,1739009432532,-150.0,9.999e-05,2]
[352225377,1739009432542,-2049.25631155,0.0001,2]
[352225378,1739009432566,-1189.367004,0.0001,2]
[352225379,1739009432582,-7458.09753364,0.0001,2]
[352225381,1739009432593,-334.66218817,0.0001,2]
[352225384,1739009432613,-298.12370856,0.0001,2]
[352225423,1739009432896,-7605.67777395,0.0001,2]
[352225425,1739009432907,-10287.68557576,0.0001,2]
[352225429,1739009432932,-500.0,0.0001,2]
[352225431,1739009432945,-500.0,0.0001,2]
[352225433,1739009432956,-1434.30223989,0.0001,2]
[352225440,1739009438419,-724.52644487,0.0001,2]
[352225441,1739009438492,-2000.942007,0.0001,2]
[352225442,1739009438503,-35681.58839099,0.0001,2]
[352225443,1739009438513,-347.18996402,0.0001,2]
[352225444,1739009438522,-9658.60054125,0.0001,2]
[352225445,1739009438531,-1078.82397679,0.0001,2]
[352225446,1739009438540,-785.09,0.0001,2]
[352225447,1739009438549,-774.96,0.0001,2]
[352225448,1739009438558,-151.38,0.0001,2]
[352225449,1739009438568,-438.71,0.0001,2]
[352225450,1739009438577,-150.0,0.0001,2]
[352225451,1739009438586,-4000.0,0.0001,2]
[352225452,1739009438595,-161.41,0.00010027,2]
[352225453,1739009438605,-161.41,0.00010033,2]
[352225454,1739009438614,-161.41,0.00010038,2]
[352225456,1739009438623,-161.41,0.00010044,2]
[352225458,1739009438632,-161.41,0.00010049,2]
[352225460,1739009438641,-161.41,0.00010055,2]
[352225462,1739009438651,-161.41,0.00010061,2]
[352225464,1739009438660,-161.41,0.00010066,2]
[352225466,1739009438669,-161.41,0.00010072,2]
[352225468,1739009438679,-161.41,0.00010077,2]
[352225470,1739009438688,-359.27,0.00010137,2]
[352225472,1739009438699,-165.81,0.00010137,2]
[352225474,1739009438708,-167.58,0.00010137,2]
[352225476,1739009438717,-150.0,0.0001019,2]
[352225478,1739009438726,-150.0,0.00010204,2]
[352225480,1739009438735,-150.0,0.00010256,2]
[352225483,1739009438745,-150.0,0.00010265,2]
[352225486,1739009438754,-1059.0,0.00010274,2]
[352225489,1739009438763,-150.0,0.00010292,2]
[352225492,1739009438771,-150.0,0.00010313,2]
[352225495,1739009438781,-516.22,0.00010456,2]
[352225498,1739009438790,-269.04,0.00010495,2]
[352225501,1739009438800,-500.0,0.000106,3]
[352225504,1739009438809,-500.0,0.00010603,2]
[352225507,1739009438818,-1000.0,0.000107,3]
[352225510,1739009438827,-221.1511075,0.00010707,2]
[352225512,1739009438839,-778.8488925,0.00010707,2]
[352225514,1739009438847,-1000.0,0.0001071,2]
[352225516,1739009438857,-150.0,0.00010722,2]
[352225518,1739009438868,-150.0,0.00010723,2]
[352225520,1739009438877,-1000.0,0.00010724,2]
[352225522,1739009438886,-150.0,0.00010728,2]
[352225524,1739009438895,-150.0,0.0001073,2]
[352225526,1739009438904,-150.0,0.00010731,2]
[352225528,1739009438913,-150.0,0.00010732,2]
[352225530,1739009438922,-150.0,0.00010732,2]
[352225532,1739009438931,-150.0,0.00010734,2]
[352225534,1739009438940,-1000.0,0.00010734,2]
[352225536,1739009438949,-150.0,0.00010736,2]
[352225538,1739009438958,-757.57604073,0.00010737,2]
[352225541,1739009438978,-242.42395927,0.00010737,2]
[352225543,1739009438987,-150.0,0.00010738,2]
[352225545,1739009438996,-1000.0,0.00010739,2]
[352225547,1739009439005,-115.15376438,0.00010744,2]
[352225549,1739009439017,-34.84623562,0.00010744,2]
[352225551,1739009439026,-1000.0,0.00010744,2]
[352225553,1739009439035,-150.0,0.00010745,2]
[352225555,1739009439045,-666.67048263,0.00010746,2]
[352225557,1739009439055,-150.0,0.00010747,2]
[352225559,1739009439064,-150.0,0.0001075,2]
[352225561,1739009439074,-1000.0,0.00010753,2]
[352225563,1739009439085,-1000.0,0.00010755,2]
[352225565,1739009439097,-150.0,0.00010756,2]
[352225567,1739009439107,-150.0,0.00010759,2]
[352225569,1739009439116,-150.0,0.00010759,2]
[352225571,1739009439125,-150.0,0.00010762,2]
[352225573,1739009439136,-1000.0,0.00010762,2]
[352225575,1739009439147,-150.0,0.00010762,2]
[352225577,1739009439159,-1000.0,0.00010763,2]
[352225579,1739009439168,-1000.0,0.00010768,2]
[352225581,1739009439178,-150.0,0.0001077,2]
[352225583,1739009439187,-150.0,0.0001077,2]
[352225585,1739009439196,-150.0,0.0001077,2]
[352225587,1739009439206,-1000.0,0.0001077,2]
[352225589,1739009439214,-150.0,0.00010772,2]
[352225591,1739009439223,-150.0,0.00010773,2]
[352225593,1739009439232,-150.0,0.00010775,2]
[352225595,1739009439241,-150.0,0.00010775,2]
[352225597,1739009439251,-150.0,0.00010775,2]
[352225599,1739009439259,-150.0,0.00010775,2]
[352225601,1739009439269,-150.0,0.00010776,2]
[352225603,1739009439278,-150.0,0.00010779,2]
[352225605,1739009439287,-150.0,0.00010779,2]
[352225607,1739009439296,-150.0,0.00010781,2]
[352225609,1739009439305,-52.85662834,0.00010782,2]
[352225611,1739009439316,-97.14337166,0.00010782,2]
[352225613,1739009439325,-150.0,0.00010782,2]
[352225615,1739009439334,-1000.0,0.00010785,2]
[352225617,1739009439343,-1000.0,0.00010785,2]
[352225619,1739009439352,-2426.18819981,0.00010788,2]
[352225735,1739009440420,-11698.68219851,0.00010788,2]
[352225738,1739009440431,-1199.29097876,0.00010788,2]
[352225778,1739009440804,-410.12968003,0.00010788,2]
[352225780,1739009440815,-6341.60486318,0.00010788,2]
[352226048,1739009443445,-15209.3194663,0.00010788,2]
[352226050,1739009443458,-6260.48447519,0.00010788,2]
[352226052,1739009443467,-1059.0,0.00010788,2]
[352226054,1739009443477,-150.0,0.00010788,2]
[352226056,1739009443486,-150.0,0.00010788,2]
[352226058,1739009443496,-150.0,0.00010789,2]
[352226060,1739009443505,-1000.0,0.00010789,2]
[352226062,1739009443514,-150.0,0.00010791,2]
[352226064,1739009443523,-1000.0,0.00010794,2]
[352226066,1739009443535,-150.0,0.00010795,2]
[352226068,1739009443544,-150.0,0.00010796,2]
[352226070,1739009443553,-300.0,0.00010799,2]
[352226072,1739009443562,-1000.0,0.000108,2]
[352226074,1739009443571,-1500.0,0.000108,3]
[352226076,1739009443581,-1000.0,0.00010803,2]
[352226078,1739009443590,-150.0,0.00010805,2]
[352226080,1739009443599,-150.0,0.00010806,2]
[352226082,1739009443608,-150.0,0.00010808,2]
[352226084,1739009443617,-1000.0,0.00010809,2]
[352226086,1739009443627,-150.0,0.0001081,2]
[352226088,1739009443635,-1000.0,0.0001081,2]
[352226090,1739009443645,-150.0,0.00010811,2]
[352226092,1739009443654,-150.0,0.00010813,2]
[352226094,1739009443662,-150.0,0.00010813,2]
[352226096,1739009443671,-150.0,0.00010814,2]
[352226098,1739009443680,-1000.0,0.00010815,2]
[352226100,1739009443690,-1000.0,0.00010817,2]
[352226102,1739009443699,-150.0,0.00010818,2]
[352226104,1739009443709,-1000.0,0.00010819,2]
[352226106,1739009443718,-150.0,0.00010822,2]
[352226108,1739009443727,-150.0,0.00010827,2]
[352226110,1739009443737,-150.0,0.00010827,2]
[352226112,1739009443746,-150.0,0.00010827,2]
[352226114,1739009443755,-150.0,0.00010828,2]
[352226116,1739009443765,-1000.0,0.00010828,2]
[352226118,1739009443774,-150.0,0.00010829,2]
[352226120,1739009443783,-151.11928763,0.00010829,2]
[352226122,1739009443793,-150.0,0.0001083,2]
[352226124,1739009443802,-1000.0,0.00010833,2]
[352226125,1739009443812,-1000.0,0.00010834,2]
[352226128,1739009443822,-545.32998612,0.00010835,2]
[352226130,1739009443832,-150.0,0.00010836,2]
[352226132,1739009443841,-150.0,0.00010837,2]
[352226134,1739009443851,-1000.0,0.00010837,2]
[352226136,1739009443860,-1000.0,0.00010837,2]
[352226138,1739009443870,-1000.0,0.00010837,2]
[352226139,1739009443879,-150.0,0.00010838,2]
[352226141,1739009443888,-150.0,0.00010838,2]
[352226143,1739009443898,-150.0,0.00010839,2]
[352226146,1739009443908,-150.0,0.0001084,2]
[352226147,1739009443917,-150.0,0.00010843,2]
[352226149,1739009443926,-150.0,0.00010844,2]
[352226152,1739009443936,-1000.0,0.00010845,2]
[352226154,1739009443945,-150.0,0.00010846,2]
[352226157,1739009443955,-150.0,0.00010846,2]
[352226160,1739009443964,-1000.0,0.00010846,2]
[352226162,1739009443974,-150.0,0.00010848,2]
[352226164,1739009443983,-150.0,0.00010849,2]
[352226166,1739009443992,-1000.0,0.00010851,2]
[352226168,1739009444002,-1000.0,0.00010852,2]
[352226170,1739009444011,-150.0,0.00010857,2]
[352226172,1739009444021,-1000.0,0.00010861,2]
[352226174,1739009444030,-150.0,0.00010863,2]
[352226177,1739009444044,-150.0,0.00010863,2]
[352226179,1739009444060,-150.0,0.00010865,2]
[352226182,1739009444073,-906.05495106,0.00010866,2]
[352226188,1739009444124,-93.94504894,0.00010866,2]
[352226190,1739009444139,-150.0,0.00010868,2]
[352226192,1739009444151,-150.0,0.00010869,2]
[352226195,1739009444166,-1000.0,0.00010869,2]
[352226197,1739009444181,-6.05495106,0.0001087,2]
[352226200,1739009444199,-143.94504894,0.0001087,2]
[352226203,1739009444213,-150.0,0.0001087,2]
[352226205,1739009444227,-150.0,0.0001087,2]
[352226208,1739009444241,-150.0,0.00010872,2]
[352226210,1739009444254,-1000.0,0.00010873,2]
[352226213,1739009444269,-150.0,0.00010874,2]
[352226215,1739009444283,-150.0,0.00010875,2]
[352226218,1739009444296,-1000.0,0.00010875,2]
[352226220,1739009444311,-150.0,0.00010879,2]
[352226223,1739009444326,-150.0,0.0001088,2]
[352226225,1739009444339,-150.0,0.00010883,2]
[352226228,1739009444352,-150.0,0.00010886,2]
[352226230,1739009444363,-150.0,0.0001089,2]
[352226232,1739009444376,-150.0,0.00010893,2]
[352226235,1739009444392,-951.23298603,0.00010893,2]
[352226238,1739009444406,-48.76701397,0.00010893,2]
[352226240,1739009444417,-150.0,0.00010895,2]
[352226242,1739009444431,-1000.0,0.00010895,2]
[352226245,1739009444446,-4.16139918,0.00010896,2]
[352226250,1739009444491,-192.66860082,0.00010896,2]
[352226253,1739009444503,-150.0,0.00010897,2]
[352226255,1739009444516,-1000.0,0.00010897,2]
[352226257,1739009444528,-150.0,0.00010898,2]
[352226260,1739009444540,-1000.0,0.00010899,2]
[352226262,1739009444552,-457.08139918,0.000109,2]
[352226265,1739009444568,-542.91860082,0.000109,2]
[352226267,1739009444580,-2000.0,0.000109,3]
[352226269,1739009444592,-150.0,0.00010902,2]
[352226270,1739009444605,-1000.0,0.00010903,2]
[352226271,1739009444617,-150.0,0.00010904,2]
[352226272,1739009444631,-1000.0,0.00010905,2]
[352226273,1739009444645,-1000.0,0.00010906,2]
[352226274,1739009444657,-150.0,0.00010907,2]
[352226275,1739009444669,-150.93579853,0.00010913,2]
[352226276,1739009444682,-150.0,0.00010915,2]
[352226277,1739009444695,-150.0,0.00010916,2]
[352226278,1739009444707,-150.0,0.00010916,2]
[352226279,1739009444720,-150.0,0.00010917,2]
[352226280,1739009444732,-232.65332889,0.00010918,2]
[352226283,1739009444745,-1000.0,0.0001092,2]
[352226285,1739009444757,-150.0,0.00010923,2]
[352226287,1739009444771,-2.20432276,0.00010925,2]
[352226290,1739009444786,-147.79567724,0.00010925,2]
[352226292,1739009444798,-150.0,0.00010926,2]
[352226294,1739009444810,-150.0,0.00010926,2]
[352226297,1739009444823,-1000.0,0.00010926,2]
[352226299,1739009444836,-150.0,0.00010927,2]
[352226301,1739009444848,-150.0,0.00010927,2]
[352226304,1739009444860,-150.0,0.00010928,2]
[352226306,1739009444872,-1000.0,0.00010928,2]
[352226308,1739009444884,-150.0,0.0001093,2]
[352226310,1739009444896,-150.0,0.00010931,2]
[352226313,1739009444909,-1000.0,0.00010931,2]
[352226315,1739009444921,-150.0,0.00010932,2]
[352226317,1739009444933,-150.0,0.00010932,2]
[352226320,1739009444946,-1000.0,0.00010935,2]
[352226322,1739009444959,-1000.0,0.00010936,2]
[352226324,1739009444971,-1827.0,0.00010938,2]
[352226327,1739009444983,-907.0,0.00010938,2]
[352226329,1739009444995,-1264.0,0.00010938,2]
[352226331,1739009445007,-2953.0,0.00010938,2]
[352226333,1739009445019,-783.0,0.00010938,2]
[352226336,1739009445031,-4024.0,0.00010938,2]
[352226338,1739009445044,-539.0,0.00010938,2]
[352226340,1739009445056,-150.0,0.00010938,2]
[352226343,1739009445068,-1007.0,0.00010938,2]
[352226345,1739009445081,-3911.0,0.00010938,2]
[352226347,1739009445092,-1108.0,0.00010938,2]
[352226349,1739009445108,-1000.0,0.00010939,2]
[352226352,1739009445120,-1000.0,0.00010939,2]
[352226354,1739009445132,-150.0,0.0001094,2]
[352226356,1739009445145,-150.0,0.00010942,2]
[352226358,1739009445158,-150.0,0.00010943,2]
[352226361,1739009445171,-150.0,0.00010944,2]
[352226363,1739009445184,-1000.0,0.00010944,2]
[352226366,1739009445197,-1000.0,0.00010944,2]
[352226368,1739009445209,-150.0,0.00010945,2]
[352226370,1739009445221,-150.0,0.00010947,2]
[352226372,1739009445233,-1000.0,0.00010948,2]
[352226375,1739009445245,-150.0,0.00010951,2]
[352226377,1739009445257,-1000.0,0.00010954,2]
[352226379,1739009445270,-420.0,0.00010955,2]
[352226381,1739009445283,-150.0,0.00010956,2]
[352226384,1739009445295,-19819.38080849,0.00010959,2]
[352226523,1739009446528,-30075.61919151,0.00010959,2]
[352226567,1739009446926,-151.0,0.00010959,2]
[352226571,1739009446958,-151.0,0.00010959,2]
[352226573,1739009446973,-151.0,0.00010959,2]
[352226575,1739009446983,-151.0,0.00010959,2]
[352226577,1739009446992,-151.0,0.00010959,2]
[352226579,1739009447001,-194.46074263,0.00010963,2]
[352226581,1739009447011,-150.0,0.00010963,2]
[352226583,1739009447020,-150.0,0.00010963,2]
[352226585,1739009447029,-150.0,0.00010963,2]
[352226587,1739009447039,-150.0,0.00010964,2]
[352226589,1739009447049,-1000.0,0.00010966,2]
[352226591,1739009447058,-150.0,0.00010967,2]
[352226593,1739009447067,-150.0,0.00010968,2]
[352226595,1739009447077,-150.0,0.00010969,2]
[352226597,1739009447086,-1000.0,0.00010969,2]
[352226599,1739009447097,-150.0,0.00010971,2]
[352226601,1739009447109,-199.00939926,0.00010971,2]
[352226603,1739009447119,-150.0,0.00010971,2]
[352226605,1739009447127,-150.0,0.00010972,2]
[352226607,1739009447136,-164.96776646,0.00010973,2]
[352226609,1739009447147,-153.51781582,0.00010973,2]
[352226611,1739009447157,-500.0,0.00010973,2]
[352226613,1739009447166,-500.0,0.00010973,2]
[352226615,1739009447175,-362.45292212,0.00010973,2]
[352226617,1739009447187,-1000.0,0.00010973,2]
[352226619,1739009447196,-1000.0,0.00010976,2]
[352226621,1739009447207,-1000.0,0.00010977,2]
[352226624,1739009447216,-150.0,0.00010978,2]
[352226625,1739009447226,-985.94049699,0.00010978,2]
[352226627,1739009447235,-150.0,0.00010979,2]
[352226629,1739009447245,-1000.0,0.00010981,2]
[352226631,1739009447254,-150.0,0.00010983,2]
[352226633,1739009447263,-1000.0,0.00010986,2]
[352226635,1739009447272,-422.92257262,0.00010989,2]
[352226637,1739009447282,-3725.0,0.0001099,2]
[352226640,1739009447291,-2272.9884522,0.00010991,2]
[352226642,1739009447301,-1041.6036807,0.00010991,2]
[352226644,1739009447310,-10701.06615768,0.00010999,2]
[352226645,1739009447320,-702.68375923,0.00010999,2]
[352226648,1739009447329,-151.0,0.00010999,2]
[352226650,1739009447338,-3724.76682213,0.00010999,2]
[352226651,1739009447347,-151.0,0.00010999,2]
[352226653,1739009447356,-151.0,0.00010999,2]
[352226655,1739009447365,-151.0,0.00010999,2]
[352226657,1739009447374,-151.0,0.00010999,2]
[352226659,1739009447384,-151.0,0.00010999,2]
[352226661,1739009447393,-151.0,0.00010999,2]
[352226663,1739009447401,-500.0,0.00010999,2]
[352226665,1739009447410,-1626.1622698,0.00010999,2]
[352226667,1739009447419,-1828.0,0.00011,2]
[352226669,1739009447428,-1106955.58942728,0.00011,2]
[352226722,1739009447931,-2857.54578979,0.00011,2]
[352226725,1739009447942,-2949.48873,0.00011,2]
[352226727,1739009447953,-3143.528934,0.00011,2]
[352227300,1739009608732,1482.0181,8.836e-05,2]
[352227301,1739009832533,3499.81,8.99e-05,2]
[352227302,1739010319638,4383.8249,8.256e-05,2]
[352227303,1739010342933,-4814.0756,8.256e-05,2]
[352227304,1739010342955,-448.46567803,9e-05,2]
[352227305,1739010342979,-166.9,9.848e-05,2]
[352227306,1739010343001,-1000.0,9.849e-05,2]
[352227307,1739010343024,-150.0,9.888e-05,2]
[352227308,1739010343045,-150.0,9.888e-05,2]
[352227309,1739010343067,-150.0,9.888e-05,2]
[352227310,1739010343087,-151.61000394,9.888e-05,2]
[352227311,1739010343108,-742.42080411,0.0001,2]
[352227312,1739010367525,6719.57979116,8e-05,2]
[352227313,1739010384090,506.94812276,8.699e-05,2]
[352227327,1739010634722,-484.75,8.219e-05,2]
[352227328,1739010634732,-30519.97047724,8.699e-05,2]
[352227329,1739010634741,-7271.9531,8.973e-05,2]
[352227330,1739010634751,-24879.75888255,9.37e-05,2]
[352227331,1739010634762,-43486.71088178,9.37e-05,2]
[352227332,1739010634946,-8742.20419166,9.37e-05,2]
[352227333,1739010635062,-327.21140078,9.37e-05,2]
[352227334,1739010637518,-120799.81245578,9.37e-05,2]
[352227335,1739010637530,-2237.88535949,9.37e-05,2]
[352227336,1739010637542,-8595.71340036,9.37e-05,2]
[352227337,1739010637639,-2076.34305428,9.37e-05,2]
[352227338,1739010637699,-23572.34410261,9.37e-05,2]
[352227339,1739010637711,-740.34726879,9.37e-05,2]
[352227340,1739010637761,-1248.82727493,9.37e-05,2]
[352227341,1739010637773,-1202.06372057,9.37e-05,2]
[352227524,1739010639672,-576.99,9.37e-05,2]
[352227533,1739010639741,-677.12645,9.37e-05,2]
[352227535,1739010639752,-1092.27862809,9.37e-05,2]
[352227541,1739010639804,-29247.60958506,9.37e-05,2]
[352227549,1739010639874,-385.5958362,9.37e-05,2]
[352227551,1739010639895,-215.46,9.822e-05,2]
[352227553,1739010639914,-500.0,9.827e-05,2]
[352227555,1739010639923,-4.31482989,9.827e-05,2]
[352227557,1739010639935,-258.31704492,9.827e-05,2]
[352227559,1739010639944,-4.79295509,9.828e-05,2]
[352227569,1739010640197,-9655.19946958,9.828e-05,2]
[352227571,1739010640207,-1500.0,9.85e-05,2]
[352227573,1739010640216,-1662.03389324,0.0001,4]
[352227575,1739010640225,-349.05,0.00010137,2]
[352227577,1739010640235,-500.0,0.00010149,2]
[352227579,1739010640246,-1732.46,0.00010308,2]
[352227581,1739010640255,-200.0,0.000104,3]
[352227583,1739010640264,-484.75,0.00010467,2]